Cogmind - Beta 16 @@@ ROGUE MODE // 2025.11.05 @ 16:25:23 Player: szymekc Result: Destroyed by G-67 Veteran with Field Laser Performance ------------- Evolutions (6) 3000 Regions Visited (20) 4000 Robots Destroyed (209) 1045 Value Destroyed (10470) 10470 Prototype IDs (31) 620 Alien Tech Used (0) 0 Bonus (7596) 7596 TOTAL SCORE: 26731 Bonus ------- High Alert Combat Kills 254 Follower Combat Kills 1989 Entered Garrisons 1400 Used RIF Installer 4000 Friendly Fire -47 Cogmind --------- Core Integrity 0/1150 Matter 10/300 Energy 86/100 System Corruption 23% Temperature Cool (4) Movement Core (150) Ox2 Location -4/Garrison Parts ------- > --- POWER (1) -------- (None) > --- PROPULSION (5) --- (None) > --- UTILITY (11) ----- Transport Network Coupler Relay Coupler [NC] (42) Relay Coupler [Swarmer] (41) Relay Coupler [Grunt] (37) Relay Coupler [Heavy] (11) Relay Coupler [Heavy] (25) > --- WEAPON (2) ------- Improved Remote Datajack (fused) Ionic Axe > --- INVENTORY (5) ---- Advanced Cryofiber Web Advanced Coolant Injector Advanced Gravity Neutralizer Advanced Weapon Cycler Peak State ------------ > --- POWER ------------ Cooled Fission Core > --- PROPULSION ------- Improved Antigrav System Improved Linear Gravjet Cooled Linear Gravjet Cooled Linear Gravjet Cooled Linear Gravjet > --- UTILITY ---------- Advanced Cryofiber Web Advanced Coolant Injector Medium Storage Unit Transport Network Coupler Quantum Capacitor Hardened Heavy Armor Plating Relay Coupler [Swarmer] Relay Coupler [Sentry] Relay Coupler [Heavy] > --- WEAPON ----------- Cooled Proton Cannon Improved Remote Datajack > --- INVENTORY -------- Light Quantum Reactor Advanced Gravity Neutralizer Advanced Weapon Cycler Advanced Transmission Jammer Relay Coupler [Hunter] Cooled Proton Cannon Enhanced Nova Cannon Compact Linear Accelerator Ragnarok Missile Launcher Ionic Axe [Rating: 124] Favorites ----------- Power Cooled Ion Engine Engine Cooled Ion Engine Power Core Backup Power VII Reactor Reinforced Antimatter Reactor Propulsion Light Treads Treads Light Treads Leg Advanced VSS Leg Hover Unit Aerolev Unit Flight Unit Surge Thruster Utility Hacking Suite Device Improved Heat Sink Storage Medium Storage Unit Processor Improved Melee Analysis Suite Hackware Hacking Suite Protection Powered Armor Weapon Light EM Pulse Cannon Energy Gun Improved EM Shotgun Energy Cannon Light EM Pulse Cannon Ballistic Gun Heavy Assault Rifle Ballistic Cannon Heavy Linear Accelerator Launcher YI-UF0's Doublenader Special Weapon Improved Remote Datajack Impact Weapon Heavy Mace Slashing Weapon Katana Special Melee Weapon Datajack Build | -11 -10 -10 -9 -9 -8 -8 -8 -8 -7 -7 -6 -6 -5 -5 -5 -5 -4 -4 -4 -4 ------- Run | Yrd Mat Min Mat Min Mat Gar Mat Gar Fac Gar Fac Gar Fac Was Fac Gar Fac Gar Fac Gar Slots Evolved 12 | . . . 2 . 2 . . . 2 . 2 . 2 . . . 2 . . . Power . | . . . . . . . . . . . . . . . . . . . . . Propulsion 3 | . . . . . . . . . . . 1 . . . . . 2 . . . Utility 9 | . . . 2 . 2 . . . 2 . 1 . 2 . . . . . . . Weapon . | . . . . . . . . . . . . . . . . . . . . . Parts Attached 200 | 5 9 3 4 5 14 9 6 11 6 5 5 24 . 2 3 26 9 13 36 5 Power 20 | 1 1 . 1 . 1 1 . 1 . . . 3 . 1 . 3 2 . 5 . Engine 8 | 1 1 . 1 . 1 1 . . . . . 1 . . . 1 1 . . . Core 6 | . . . . . . . . 1 . . . 2 . . . 1 . . 2 . Reactor 6 | . . . . . . . . . . . . . . 1 . 1 1 . 3 . Propulsion 55 | 2 1 2 . 1 5 4 2 3 1 1 1 4 . . . 6 3 5 14 . Treads 18 | 2 1 2 . 1 3 4 2 1 . . . . . . . . . 1 1 . Leg 21 | . . . . . . . . . . . . 4 . . . 6 3 4 4 . Wheel . | . . . . . . . . . . . . . . . . . . . . . Hover 12 | . . . . . 1 . . 2 . . 1 . . . . . . . 8 . Flight 4 | . . . . . 1 . . . 1 1 . . . . . . . . 1 . Utility 87 | . 3 . 1 2 5 1 3 5 3 4 3 15 . 1 2 15 3 5 11 5 Device 18 | . 2 . . 1 3 1 . 1 . . . 1 . . 1 . 2 1 5 . Storage 3 | . 1 . . . . . . . . . . . . . . . 1 1 . . Processor 8 | . . . . . . . . 2 2 . 1 . . . . 1 . . 2 . Hackware 45 | . . . 1 . 1 . . . 1 4 2 12 . 1 . 14 . 1 3 5 Protection 13 | . . . . 1 1 . 3 2 . . . 2 . . 1 . . 2 1 . Artifact . | . . . . . . . . . . . . . . . . . . . . . Weapon 38 | 2 4 1 2 2 3 3 1 2 2 . 1 2 . . 1 2 1 3 6 . Energy Gun 4 | . . . 2 1 . . 1 . . . . . . . . . . . . . Energy Cannon 12 | . 2 1 . . 1 . . 2 . . . . . . . . . 3 3 . Ballistic Gun 7 | 2 1 . . . 2 2 . . . . . . . . . . . . . . Ballistic Cannon 7 | . . . . . . . . . . . 1 2 . . 1 2 . . 1 . Launcher 3 | . 1 . . 1 . . . . . . . . . . . . . . 1 . Special Weapon 1 | . . . . . . . . . . . . . . . . . . . 1 . Impact Weapon 1 | . . . . . . 1 . . . . . . . . . . . . . . Slashing Weapon 2 | . . . . . . . . . 1 . . . . . . . 1 . . . Piercing Weapon . | . . . . . . . . . . . . . . . . . . . . . Special Melee Weapon 1 | . . . . . . . . . 1 . . . . . . . . . . . Unidentified Prototypes 20 | . 1 . 1 2 3 . 1 . 1 . . . . . . . 2 . 9 . Corrupted Parts 2 | . . . . 1 . . . . . . . . . . . . . . 1 . System Corruption 21 | . . . . 13 . . . . . . . . . . . . . . 8 . Parts Lost 51 | . 2 1 . 1 2 4 . 4 . 1 . 7 . 2 . 11 1 1 11 3 Power 4 | . . . . . . . . 1 . . . . . 1 . 1 . . 1 . Propulsion 11 | . . . . . . . . . . . . 2 . . . 3 . . 5 1 Utility 26 | . 1 . . . 1 3 . 1 . 1 . 4 . 1 . 6 1 1 4 2 Weapon 10 | . 1 1 . 1 1 1 . 2 . . . 1 . . . 1 . . 1 . Highest Loss Streak 10 | . 1 1 . 1 1 3 . 2 . 1 . 5 . 2 . 4 1 1 10 3 To Critical Strikes . | . . . . . . . . . . . . . . . . . . . . . Average Backups 6 | 1 6 9 10 9 8 9 9 6 4 4 4 4 4 3 2 3 4 8 9 4 Power . | . 2 4 3 1 1 1 1 . . . . . . . . . . . . . Propulsion . | . . . . 1 1 4 4 2 2 . . . . . . . . . . . Utility 1 | . . 1 1 1 2 2 2 2 2 3 2 1 1 . . . . 4 5 3 Weapon 2 | 1 3 4 5 4 4 2 2 1 . . . 1 2 2 2 1 2 2 3 . Tool/Special . | . . . . . . . . . . . . . . . . . . . . . Unused Backups 30 | . 2 1 2 4 3 1 . . 2 1 . 2 . . . 1 . 5 5 1 Power 5 | . 1 1 1 1 . 1 . . . . . . . . . . . . . . Propulsion 7 | . . . . 1 1 . . . 1 . . 1 . . . . . 2 1 . Utility 8 | . . . . . . . . . 1 1 . 1 . . . 1 . 2 1 1 Weapon 10 | . 1 . 1 2 2 . . . . . . . . . . . . 1 3 . Tool/Special . | . . . . . . . . . . . . . . . . . . . . . Average Slot Usage (%) 88 | . 88 100 77 95 96 85 89 87 86 96 86 92 82 76 82 83 86 82 82 40 Engine 4 | . 14 14 11 11 9 9 9 3 . . . . . . . . 1 . . . Core 1 | . . . . . . . . 4 7 7 6 6 5 1 . . . . 1 . Reactor 1 | . . . . . . . . . . . . . . . 5 3 3 5 3 . Treads 8 | . 28 28 22 22 17 18 18 8 . . . . . . . . . 2 . . Leg 7 | . . . . . . . . . . . . 13 17 17 17 13 20 18 11 . Hover 3 | . . . . . . . . 9 15 8 20 5 . . . . . . 11 . Device 7 | . 4 14 11 11 17 9 9 5 12 9 6 1 . . . 4 6 6 10 . Storage 4 | . 12 14 11 11 9 9 9 4 . . . . . . . . 1 5 4 . Processor 2 | . . . . . . . . 9 20 11 6 1 . . . 1 . . 2 5 Hackware 26 | . . . . 11 12 18 18 18 15 35 37 51 47 44 47 49 46 33 21 25 Protection 3 | . . . . 7 12 3 8 11 . . . 3 5 1 4 2 . 3 3 . Energy Gun 2 | . . . 12 21 12 . . . . . . . . . . . . . . . Energy Cannon 4 | . 9 27 9 . 2 . . 1 . . . . . . . . . 1 4 . Ballistic Gun 2 | . 18 . . . 3 15 15 3 . . . . . . . . . . . . Ballistic Cannon 1 | . . . . . . . . . . . 4 4 5 1 4 3 3 2 . . Special Melee Weapon 1 | . . . . . . . . . 6 7 1 . . 3 . 1 1 1 1 . Peak Build Rating 124 | 5 15 15 20 29 41 34 28 47 60 59 69 76 75 75 80 90 103 117 124 42 Average Rating 55 | 4 8 14 16 21 31 25 24 35 55 53 59 68 75 56 74 72 93 100 106 35 On Entrance 45 | . 5 15 15 20 23 34 21 25 43 59 53 69 75 75 52 80 76 93 102 26 Avg Prop Armor Cover (%) 17 | . . . . . . . . . . . . 7 . 29 . . . 12 17 . Naked Turns . | . . . . . . . . . . . . . . . . . . . . . Heaviest Build 77 | 8 27 27 27 32 35 28 39 40 16 16 25 44 44 44 51 51 57 77 77 4 Greatest Support 108 | 40 40 40 40 40 50 50 42 42 16 16 25 56 51 51 51 61 94 106 108 4 Greatest Overweight (x) 8 | . . . . . . . . 1 . 1 . 3 . . . 8 . 1 2 1 Average Overweight (x) . | . . . . . . . . . . . . . . . . . . . . . Largest Inventory Capacity 10 | 5 10 10 10 10 10 10 10 10 5 5 5 5 5 5 5 5 10 10 10 5 Average Capacity 7 | 5 9 10 10 10 10 10 10 7 5 5 5 5 5 5 5 5 6 10 9 5 Most Carried 10 | 3 10 10 10 10 10 10 10 10 5 5 5 5 5 5 5 5 10 10 10 5 Average Carried 7 | 1 6 9 9 9 9 10 10 7 4 4 4 4 5 4 3 4 5 9 9 4 Final Capacity 10 | 5 10 10 10 10 10 10 10 5 5 5 5 5 5 5 5 5 10 10 5 5 Final Carried 10 | 3 10 10 10 10 10 10 10 5 5 5 5 5 5 5 4 5 10 10 5 4 Class Distribution -------------------- 29% | Botlord-Mutant 20% | Mutant 16% | Bothacker-Mutant 14% | Hacker-Mutant 12% | Scavenger-Mutant 3% | Bothacker-Sprinter Dominant Class ---------------- Mutant | -10/Materials Mutant | -10/Mines Mutant | -9/Materials Scavenger-Mutant | -9/Mines Mutant | -8/Materials Scavenger-Mutant | -8/Garrison Scavenger-Mutant | -8/Materials Hacker-Mutant | -8/Garrison Hacker-Mutant | -7/Factory Bothacker-Sprinter | -7/Garrison Hacker-Mutant | -6/Factory Bothacker-Mutant | -6/Garrison Botlord-Mutant | -5/Factory Bothacker-Mutant | -5/Waste Bothacker-Mutant | -5/Factory Botlord-Mutant | -5/Garrison Botlord-Mutant | -4/Factory Botlord-Mutant | -4/Garrison Botlord-Mutant | -4/Factory Botlord-Sprinter | -4/Garrison Resources | -11 -10 -10 -9 -9 -8 -8 -8 -8 -7 -7 -6 -6 -5 -5 -5 -5 -4 -4 -4 -4 ----------- Run | Yrd Mat Min Mat Min Mat Gar Mat Gar Fac Gar Fac Gar Fac Was Fac Gar Fac Gar Fac Gar Matter Collected 7242 | 310 232 130 20 65 301 370 308 522 200 109 192 1106 . 57 211 1454 261 535 859 . Remotely . | . . . . . . . . . . . . . . . . . . . . . Salvage Created 8904 | 214 435 356 191 272 1237 400 381 480 28 76 361 610 . 249 124 501 194 590 2205 . Parts 359 | 10 22 23 8 9 65 26 17 12 1 5 9 27 . 3 8 17 5 17 75 . Haulers Intercepted 6 | . . . . . 2 . . . . . 1 . . . . . . . 3 . Recyclers Shooed 7 | 1 . . 1 . . . . . . . 2 . . . . . 1 . 2 . Parts Field Recycled . | . . . . . . . . . . . . . . . . . . . . . Retrieved Matter . | . . . . . . . . . . . . . . . . . . . . . Parts Self-Destructed . | . . . . . . . . . . . . . . . . . . . . . Prevented . | . . . . . . . . . . . . . . . . . . . . . Parts Restored . | . . . . . . . . . . . . . . . . . . . . . Kills | -11 -10 -10 -9 -9 -8 -8 -8 -8 -7 -7 -6 -6 -5 -5 -5 -5 -4 -4 -4 -4 ------- Run | Yrd Mat Min Mat Min Mat Gar Mat Gar Fac Gar Fac Gar Fac Was Fac Gar Fac Gar Fac Gar Combat Hostiles Destroyed 169 | . 14 11 3 4 19 14 6 15 . 4 2 19 . 1 3 15 1 10 28 . Melee 11 | . . . . . . . . 2 . 4 . 3 . 1 . 1 . . . . Guns 44 | . 6 . 1 3 15 10 5 4 . . . . . . . . . . . . Cannons 68 | . 5 3 2 . 1 . . . . . 2 14 . . 3 12 1 10 15 . AOE 36 | . 3 7 . . 3 4 1 6 . . . 2 . . . . . . 10 . Classes Destroyed 19 | 3 3 . 2 . 4 . 1 1 . . . . . 1 . 1 . 1 2 . Worker 8 | 2 . . . . 1 . . . 1 . . . . . . . . . 4 . Builder 2 | . . . . . 1 . . . . . . . . . . . . . 1 . Tunneler 3 | 3 . . . . . . . . . . . . . . . . . . . . Hauler 6 | . . . . . 2 . . . . . 1 . . . . . . . 3 . Recycler 12 | 1 . 1 . . 2 . 1 . . . 2 . . . . . 1 . 4 . Mechanic 2 | . . . . . . . 1 . . . . . . . . . . . 1 . Operator 1 | . 1 . . . . . . . . . . . . . . . . . . . Watcher 5 | . . . 2 . 1 . . . . . . . . . 1 . . . 1 . Swarmer 36 | . 5 6 . . 3 7 . . . . 1 3 . . . 3 . 4 4 . Cutter 7 | . . . . . . . . . . . . . . . . 4 . . 3 . Grunt 69 | . 9 5 2 3 12 3 5 5 . 2 . 5 . . . 6 . 3 9 . Brawler 1 | . . . . . . . . . . . . . . . . . . . 1 . Duelist 2 | . . . . . 1 . . 1 . . . . . . . . . . . . Sentry 19 | . . . 1 . 2 4 1 2 . . 1 3 . . 1 . . 2 2 . Specialist 2 | . . . . . . . . . . . . . . . . . . . 2 . Hunter 9 | . . . . . 1 . . 1 . . . 6 . . . 1 . . . . Programmer 21 | . . . . . . . . 6 . 2 . 2 . . 2 1 1 . 7 . Behemoth 2 | . . . . . . . . . . . . . . . . . . 2 . . Compactor 1 | . . . . . . . . . . . . . . 1 . . . . . . Best Kill Streak 10 | 3 6 3 3 3 10 4 4 3 1 2 1 4 . 1 2 4 1 5 7 . Combat Bots Only 6 | . 5 3 2 3 6 4 3 3 . 2 1 4 . 1 2 4 1 5 6 . Max Kills in Single Turn 6 | 1 2 3 1 1 6 2 1 1 1 1 1 2 . 1 1 1 1 1 3 . Gunslinging 1 | . . . . . 1 . . . . . . . . . . . . . . . Exploded 3 | . 2 3 . . 3 2 1 1 . . . 2 . . . . . . 3 . Melee 1 | . . . . . . . . 1 . 1 . 1 . 1 . 1 . . . . Uniques/NPCs Destroyed 1 | . . . . 1 . . . . . . . . . . . . . . . . YI-UF0 (-9/Mines) Combat | -11 -10 -10 -9 -9 -8 -8 -8 -8 -7 -7 -6 -6 -5 -5 -5 -5 -4 -4 -4 -4 -------- Run | Yrd Mat Min Mat Min Mat Gar Mat Gar Fac Gar Fac Gar Fac Was Fac Gar Fac Gar Fac Gar Hostile Shots Fired 1055 | . 60 37 5 14 80 69 43 117 . 19 3 117 . 1 11 107 20 94 215 43 Missed 334 | . 11 11 3 5 20 18 14 43 . 8 . 49 . . 5 31 11 25 72 8 Hits 721 | . 49 26 2 9 60 51 29 74 . 11 3 68 . 1 6 76 9 69 143 35 Melee 33 | . . . . . . . . 3 . . . . . 1 . 20 . . 9 . Projectile 688 | . 49 26 2 9 60 51 29 71 . 11 3 68 . . 6 56 9 69 134 35 AOE 5 | . . . . 5 . . . . . . . . . . . . . . . . Critical Strikes 44 | . 1 . . . 3 . 2 6 . . . 4 . 1 2 5 2 3 12 3 Part Disruptions 1 | . . . . . . . . . . . . . . . . . . . 1 . Damage Taken 13021 | . 562 356 28 208 820 568 479 1499 . 156 48 1173 . 66 126 1622 296 1462 3037 515 Core 2331 | . 95 31 . 26 81 41 32 237 . 41 18 125 . . 19 435 66 47 647 390 Absorbed by Shields 254 | . . . . . . . . . . . . 53 . . . 24 . . . 177 Ignored by Resistances 28 | . . . . . . . . 28 . . . . . . . . . . . . Regen/Repaired (Parts) 241 | . . . . . . . . . . . . 241 . . . . . . . . Core Remaining (%) 71 | 100 . 49 . 93 . . . 28 . 94 . 83 . . . 54 . . . . Volleys Fired 590 | 15 42 21 5 10 52 29 25 35 . . 17 59 . . 9 79 8 52 132 . Largest 2 | 2 2 2 2 2 2 2 2 2 . . 1 1 . . 1 1 1 1 1 . Hottest 138 | 40 112 112 112 90 101 70 70 138 . . 65 70 . . 70 70 70 120 120 . Shots Fired 791 | 30 79 39 10 20 104 56 48 47 . . 17 59 . . 9 79 8 53 133 . Gun 324 | 30 46 . 4 20 93 54 46 31 . . . . . . . . . . . . Cannon 421 | . 28 36 6 . 11 . . 4 . . 17 59 . . 9 79 8 53 111 . Launcher 34 | . 5 3 . . . 2 2 12 . . . . . . . . . . 10 . Special 12 | . . . . . . . . . . . . . . . . . . . 12 . Kinetic 434 | 30 46 . . . 24 54 46 31 . . 17 59 . . 9 79 8 31 . . Thermal 118 | . . . . . . . . . . . . . . . . . . 22 96 . Explosive 34 | . 5 3 . . . 2 2 12 . . . . . . . . . . 10 . Electromagnetic 193 | . 28 36 10 20 80 . . 4 . . . . . . . . . . 15 . Robot Hit Streak 19 | 3 9 8 3 7 19 6 6 8 . . 4 12 . . 7 9 1 9 10 . Robot Miss Streak 7 | 3 3 4 1 3 5 4 3 2 . . 1 2 . . 1 3 3 7 4 . Penetration Max 1 | . . . . . . . . . . . . 1 . . . . . . . . Secondary Targets 9 | . . . . 2 3 2 . 2 . . . . . . . . . . . . Max Gunslinging Chain 1 | . . . . 1 1 1 . 1 . . . . . . . . . . . . Capacitor 118 | . . . . . . . . . . . . . . . . . . 22 96 . Shots Hit Robots 603 | 15 49 21 7 17 82 30 32 48 2 13 24 45 . 13 7 66 8 29 86 9 Core Hits 340 | 9 27 14 7 11 58 21 20 35 . 4 6 19 . 2 4 17 2 13 71 . Critical Kills 2 | . . . . . . . 1 . . . . . . . . . . . 1 . Critical Parts Destroyed 6 | 1 . . . . . 1 2 2 . . . . . . . . . . . . Critical Strikes 23 | 1 . . . . . 1 4 3 . 2 2 3 . . . 2 1 2 1 1 Meltdown 1 | . . . . . . . . . . . . . . . . . . . 1 . Destroy 6 | 1 . . . . . 1 4 . . . . . . . . . . . . . Blast 8 | . . . . . . . . . . . 1 2 . . . 2 1 2 . . Corrupt 1 | . . . . . . . . 1 . . . . . . . . . . . . Smash 2 | . . . . . . . . 2 . . . . . . . . . . . . Sever 5 | . . . . . . . . . . 2 1 1 . . . . . . . 1 Melee Attacks 230 | . . . . . . 2 . 31 11 20 20 24 . 14 . 60 5 8 15 20 Impact 33 | . . . . . . 2 . 31 . . . . . . . . . . . . Slashing 123 | . . . . . . . . . 11 20 16 10 . 7 . 25 3 5 6 20 Piercing . | . . . . . . . . . . . . . . . . . . . . . Sneak Attacks 34 | . . . . . . . . . 2 . 3 7 . 7 . 5 1 4 5 . Combat Hostiles 7 | . . . . . . . . . . . . . . 7 . . . . . . Follow-up Attacks . | . . . . . . . . . . . . . . . . . . . . . Damage Inflicted 25977 | 173 813 787 200 335 2073 784 606 2032 138 555 970 3088 . 223 581 3313 456 2005 6431 414 Guns 3510 | 173 374 . 52 265 1386 515 460 285 . . . . . . . . . . . . Cannons 11919 | . 235 475 103 . 210 . . 118 . . 483 2496 . . 581 2497 243 1597 2881 . Explosions 5838 | . 201 309 38 52 477 269 146 865 . . . 261 . . . . . . 3220 . Melee 4518 | . . . . . . . . 764 138 555 487 331 . 223 . 786 213 397 211 413 Ramming 192 | . 3 3 7 18 . . . . . . . . . . . 30 . 11 119 1 Kinetic 9457 | 173 374 . . . 252 515 460 285 . . 483 2496 . . 581 2497 243 1098 . . Thermal 3883 | . . 96 38 52 477 . . . . . . . . . . . . 499 2721 . Explosive 4416 | . 201 213 . . . 269 146 865 . . . 261 . . . . . . 2461 . Electromagnetic 3511 | . 235 475 155 265 1344 . . 118 . . . . . . . . . . 919 . Impact 764 | . . . . . . . . 764 . . . . . . . . . . . . Slashing 3754 | . . . . . . . . . 138 555 487 331 . 223 . 786 213 397 211 413 Piercing . | . . . . . . . . . . . . . . . . . . . . . Highest Corruption 23 | . . . . 13 . . 4 8 . 1 . 1 . 16 16 16 3 3 23 23 Average Corruption 8 | . . . . 13 . . 4 5 . 1 . 1 . 8 16 16 2 3 4 23 Corruption Purged . | . . . . . . . . . . . . . . . . . . . . . Corruption Blocked . | . . . . . . . . . . . . . . . . . . . . . Effects 159 | . . . . 1 . . . 24 . 3 . 2 . 4 13 70 1 13 23 5 Message Errors 35 | . . . . . . . . 8 . . . . . 1 2 12 1 4 4 3 Matter Fused 41 | . . . . 1 . . . 6 . . . . . 1 6 18 . 2 7 . Heat Flow Errors 10 | . . . . . . . . 1 . 1 . . . . 1 5 . . 2 . Energy Discharges 24 | . . . . . . . . 3 . 1 . 2 . . 2 10 . 2 3 1 Parts Rejected 1 | . . . . . . . . . . . . . . 1 . . . . . . Parts Fused 2 | . . . . . . . . 1 . . . . . . . . . . . 1 Data Loss (minor) 18 | . . . . . . . . 2 . . . . . 1 1 8 . 2 4 . Data Loss (major) 12 | . . . . . . . . 2 . 1 . . . . . 6 . 2 1 . Misfires 5 | . . . . . . . . . . . . . . . . 3 . 1 1 . Alerts 2 | . . . . . . . . . . . . . . . . 2 . . . . Misdirections 5 | . . . . . . . . . . . . . . . 1 3 . . 1 . Weapon Failures 4 | . . . . . . . . 1 . . . . . . . 3 . . . . Overload Shots 1 | . . . . . . . . . . . . . . . . . . . 1 . Overflow Damage 1633 | . 25 19 . 1 . . . 223 63 21 35 121 . . 55 289 73 177 528 3 Projectiles 637 | . 25 . . . . . . . . . . 63 . . 55 216 73 59 146 . Explosions 347 | . . 19 . 1 . . . 9 . . . . . . . . . . 318 . Melee 649 | . . . . . . . . 214 63 21 35 58 . . . 73 . 118 64 3 Knockbacks 30 | . . . . . . . . . . . . 8 . . 1 12 1 7 1 . Impact 2 | . . . . . . . . . . . . . . . . . . 1 1 . Kinetic 25 | . . . . . . . . . . . . 8 . . 1 9 1 6 . . Secondary 3 | . . . . . . . . . . . . . . . . 3 . . . . Self-Inflicted Damage 432 | . 19 44 . . 22 15 . 100 . . . . . . . . . . 232 . Shots 18 | . 1 3 . . 2 2 . 6 . . . . . . . . . . 4 . Rammed 12 | . 1 1 3 2 . . . . . . . . . . . . . . 4 1 Targets Rammed 22 | . 1 1 3 2 . . . . . . . . . . . 7 . 1 6 1 Kicked 10 | . . . . . . . . . . . . . . . . 7 . 1 2 . Crushed . | . . . . . . . . . . . . . . . . . . . . . Highest Temperature 394 | . 180 72 . 3 24 18 38 344 . 194 19 84 . . 253 241 359 394 294 . Average Temperature 64 | . 48 21 . 3 10 7 13 133 . 105 9 18 . . 58 44 114 81 88 . Received Heat Transfer 3424 | . 255 129 9 39 378 135 279 180 . 9 . 180 . 9 9 302 389 642 332 148 Effects 1 | . . . . . . . . . . . . . . . . . 1 . . . Energy Bleed 1 | . . . . . . . . . . . . . . . . . 1 . . . Siege Activations 1 | . . . . . . . . . . . . . . . . . . 1 . . Total Turns 18 | . . . . . . . . . . . . . . . . . . 18 . . Longest Duration 18 | . . . . . . . . . . . . . . . . . . 18 . . Martial Activations . | . . . . . . . . . . . . . . . . . . . . . Shielding Activations 1 | . . . . . . . . . . . . . . . . . 1 . . . Total Turns 5 | . . . . . . . . . . . . . . . . . 5 . . . Longest Duration 5 | . . . . . . . . . . . . . . . . . 5 . . . Robots Disrupted 2 | . . . . . 1 . . . . . . . . . . . . . 1 . Combat Hostiles 2 | . . . . . 1 . . . . . . . . . . . . . 1 . Robots Corrupted 10 | . . 1 . 1 . . . 3 . . . . . . . 2 . . 3 . Combat Hostiles 10 | . . 1 . 1 . . . 3 . . . . . . . 2 . . 3 . Parts Fried 20 | . . 2 . . 7 . . 5 . . . . . . . 3 . . 3 . Impact Corruptions 15 | . . . . . . . . 11 . . . . . . . 3 . . 1 . Robots Melted 1 | . . . . . . . . . . . . . . . . . . . 1 . Combat Hostiles . | . . . . . . . . . . . . . . . . . . . . . Parts Melted 9 | . . . . . . . . . . . . . . . . . . 1 8 . Heat Transferred 3443 | . . 100 50 100 700 . . . . . . . . . . . . 406 2087 . Parts Sabotaged 1 | . . . . . . . . . . . . . . . . 1 . . . . Parts Stolen . | . . . . . . . . . . . . . . . . . . . . . Parts Stripped . | . . . . . . . . . . . . . . . . . . . . . Power Chain Reactions 9 | . . 2 1 1 5 . . . . . . . . . . . . . . . Alert | -11 -10 -10 -9 -9 -8 -8 -8 -8 -7 -7 -6 -6 -5 -5 -5 -5 -4 -4 -4 -4 ------- Run | Yrd Mat Min Mat Min Mat Gar Mat Gar Fac Gar Fac Gar Fac Was Fac Gar Fac Gar Fac Gar Maximum Alert Level 2 | . 1 1 . . 1 1 1 2 1 . . 2 1 . . 1 . 2 2 2 Low Security (%) 60 | 100 75 96 100 100 82 25 34 9 61 100 100 15 . 100 100 62 100 44 33 . Level 1 27 | . 24 3 . . 17 74 65 34 38 . . 40 100 . . 37 . 25 59 8 Level 2 12 | . . . . . . . . 56 . . . 43 . . . . . 29 7 92 Level 3 . | . . . . . . . . . . . . . . . . . . . . . Level 4 . | . . . . . . . . . . . . . . . . . . . . . Level 5 . | . . . . . . . . . . . . . . . . . . . . . High Security . | . . . . . . . . . . . . . . . . . . . . . Max Security . | . . . . . . . . . . . . . . . . . . . . . Peak Influence 694 | 10 255 213 120 75 269 395 290 508 256 169 148 694 364 123 40 372 180 495 591 482 Initial 396 | . 3 92 11 27 . 49 192 149 256 3 88 96 364 123 30 23 178 7 259 396 Average 188 | 1 107 120 67 11 86 260 223 380 105 89 107 379 359 78 11 185 29 254 246 448 Influence Increases 6920 | 30 446 395 221 75 550 386 188 460 109 299 220 868 . . 85 608 90 618 1186 86 Destroy 0b10 Robot/C 3410 | . 280 280 120 60 380 280 120 320 20 80 75 360 . . 45 225 15 330 420 . Destroy 0b10 Robot/NC 197 | 30 5 5 15 . 35 . 10 . 5 . 20 . . . 4 8 4 . 56 . Destroy Leader 502 | . 50 50 36 10 86 20 30 10 . 30 26 16 . . 18 8 . 24 88 . Allied During Kill 235 | . . 14 22 . . . . 1 . . 34 30 . . . 16 7 75 36 . Successful Hack 219 | . 20 . 10 . 9 26 . . 46 24 46 9 . . . . . 11 18 . Select Force Hacks 68 | . 30 . . . . . . . . . . . . . . . . . 38 . Disable Machine 342 | . 15 15 15 . 30 . . . 15 . 12 12 . . . 12 12 24 180 . Anti-Garrison Action 618 | . . . . . . . . . . 50 . 227 . . . 189 . 76 . 76 Destroy Structure 780 | . 31 31 3 5 10 15 28 69 8 25 7 58 . . 6 114 52 78 230 10 Partial Spotted 42 | . . . . . . . . . 15 15 . . . . . . . . 12 . Lose Combat Pursuer 507 | . 15 . . . . 45 . 60 . 75 . 156 . . 12 36 . . 108 . Influence Decreases 6468 | 25 213 602 180 147 474 67 353 201 593 135 251 312 340 311 94 302 420 133 1114 201 Entered New Map 2039 | . 2 146 20 45 . 27 203 81 233 2 81 42 330 231 13 11 162 3 236 171 Time Decay 2316 | 25 201 446 140 102 205 . 150 . 170 . 170 . 10 60 81 . 98 . 458 . Lost Part 490 | . 10 10 . . 20 40 . 40 . 10 . 70 . 20 . 110 10 10 110 30 Lost Ally 924 | . . . 20 . . . . 80 40 123 . 200 . . . 181 . 120 160 . Purge Threat 699 | . . . . . 249 . . . 150 . . . . . . . 150 . 150 . Squads Dispatched 20 | . 2 . . . 2 . 1 . 2 . 1 . . . 1 . 2 . 9 . Investigation 3 | . 1 . . . . . . . 1 . . . . . . . . . 1 . Extermination 9 | . . . . . . . . . 1 . 1 . . . 1 . 2 . 4 . Reinforcement 8 | . 1 . . . 2 . 1 . . . . . . . . . . . 4 . Assault . | . . . . . . . . . . . . . . . . . . . . . Garrison . | . . . . . . . . . . . . . . . . . . . . . Intercept . | . . . . . . . . . . . . . . . . . . . . . Searches Triggered . | . . . . . . . . . . . . . . . . . . . . . Construction Impeded 1 | . . . . . 1 . . . . . . . . . . . . . . . Haulers Reinforced 1 | . . . . . . . . . . . . . . . . . . . 1 . Active Scanning Responses . | . . . . . . . . . . . . . . . . . . . . . Cargo Convoy Interrupts 1 | . . . . . . . . . . . . . . . . . . . 1 . Alert ID Control Effect 27 | . . . . . . . . . . . . 1 . . . 13 3 6 4 . Stealth | -11 -10 -10 -9 -9 -8 -8 -8 -8 -7 -7 -6 -6 -5 -5 -5 -5 -4 -4 -4 -4 --------- Run | Yrd Mat Min Mat Min Mat Gar Mat Gar Fac Gar Fac Gar Fac Was Fac Gar Fac Gar Fac Gar Distress Signals 16 | . . . 3 . 8 . . . . . 1 . . . . . . . 4 . Communications Jammed . | . . . . . . . . . . . . . . . . . . . . . Distress Signals . | . . . . . . . . . . . . . . . . . . . . . Times Spotted 325 | . 19 14 10 5 34 14 10 26 1 14 3 32 . 6 8 45 5 23 54 2 Peak Tracking Total 8 | . 5 3 3 3 7 7 4 8 1 4 2 6 . 2 4 7 3 6 8 2 Tactical Retreats 25 | . 1 . . 1 . 1 . 3 . 5 . 6 . . 1 1 . . 6 . Traps | -11 -10 -10 -9 -9 -8 -8 -8 -8 -7 -7 -6 -6 -5 -5 -5 -5 -4 -4 -4 -4 ------- Run | Yrd Mat Min Mat Min Mat Gar Mat Gar Fac Gar Fac Gar Fac Was Fac Gar Fac Gar Fac Gar Traps Triggered 20 | . . . . . . . . 3 3 1 . 3 1 . . 2 . 4 3 . Indirectly . | . . . . . . . . . . . . . . . . . . . . . Trap Hack Attempts . | . . . . . . . . . . . . . . . . . . . . . Triggered . | . . . . . . . . . . . . . . . . . . . . . Disarmed . | . . . . . . . . . . . . . . . . . . . . . Reprogrammed . | . . . . . . . . . . . . . . . . . . . . . Reused . | . . . . . . . . . . . . . . . . . . . . . Traps Extracted . | . . . . . . . . . . . . . . . . . . . . . Installed . | . . . . . . . . . . . . . . . . . . . . . Triggered . | . . . . . . . . . . . . . . . . . . . . . Machines | -11 -10 -10 -9 -9 -8 -8 -8 -8 -7 -7 -6 -6 -5 -5 -5 -5 -4 -4 -4 -4 ---------- Run | Yrd Mat Min Mat Min Mat Gar Mat Gar Fac Gar Fac Gar Fac Was Fac Gar Fac Gar Fac Gar Machines Disabled 43 | . 1 1 2 . 2 . . . 1 1 1 6 . . . 4 1 6 15 2 Max in Single Turn 4 | . 1 1 1 . 1 . . . 1 1 1 2 . . . 1 . 1 4 1 Garrison Access 2 | . . . . . . . . . 2 . . . . . . . . . . . Garrison Relay 10 | . . . . . . . . . . 1 . 3 . . . 3 . 1 . 2 Phase Generator 1 | . . . . . . . . . . . . 1 . . . . . . . . Machines Repaired . | . . . . . . . . . . . . . . . . . . . . . Machines Dismantled . | . . . . . . . . . . . . . . . . . . . . . Machines Sabotaged . | . . . . . . . . . . . . . . . . . . . . . Overloaded Fab Kills 6 | . . . . . . . . . . . . . . . . . . . 6 . Hacking | -11 -10 -10 -9 -9 -8 -8 -8 -8 -7 -7 -6 -6 -5 -5 -5 -5 -4 -4 -4 -4 --------- Run | Yrd Mat Min Mat Min Mat Gar Mat Gar Fac Gar Fac Gar Fac Was Fac Gar Fac Gar Fac Gar Machines Accessed 49 | . 3 . 2 1 6 1 1 2 12 1 5 1 . . 2 2 3 2 5 . Terminals 29 | . 2 . 1 . 5 1 . 2 6 1 2 1 . . 1 2 2 2 1 . Fabricators 2 | . . . . . . . . . 1 . . . . . . . . . 1 . Repair Stations 2 | . . . . . . . . . 1 . . . . . . . . . 1 . Recycling Units 2 | . 1 . . . . . . . . . 1 . . . . . . . . . Scanalyzers 4 | . . . 1 . . . . . 1 . 1 . . . . . . . 1 . Garrison Access 9 | . . . . . 1 . 1 . 3 . 1 . . . 1 . 1 . 1 . Total Hacks 123 | . 15 . 6 1 16 3 1 3 26 4 17 3 . . 5 6 4 4 9 . Successful 71 | . 7 . 3 1 9 2 1 1 18 2 14 1 . . 1 2 2 1 6 . Failed 51 | . 8 . 3 . 7 1 . 2 7 2 3 2 . . 4 4 2 3 3 . Catastrophic 8 | . . . . . 1 1 . . 1 1 . 1 . . . . 1 1 1 . Database Lockouts 1 | . . . . . . . . . 1 . . . . . . . . . . . Manual 39 | . 7 . 2 . 8 2 . 1 5 3 7 2 . . . 1 . . 1 . Terminals 91 | . 13 . 5 . 15 3 . 3 15 4 10 3 . . 4 6 3 4 3 . Fabricators 3 | . . . . . . . . . 2 . . . . . . . . . 1 . Repair Stations 4 | . . . . . . . . . 2 . . . . . . . . . 2 . Recycling Units 4 | . 2 . . . . . . . . . 2 . . . . . . . . . Scanalyzers 9 | . . . 1 . . . . . 3 . 3 . . . . . . . 2 . Garrison Access 11 | . . . . . 1 . 1 . 4 . 2 . . . 1 . 1 . 1 . Terminal Hacks 37 | . 2 . 2 1 6 2 . 1 9 2 6 1 . . . 2 1 1 1 . Robot Analysis 1 | . . . . . 1 . . . . . . . . . . . . . . . Prototype ID Bank 4 | . . . 1 . 1 . . . 1 . 1 . . . . . . . . . Open Door 1 | . . . . 1 . . . . . . . . . . . . . . . . Branch Access Points 1 | . . . 1 . . . . . . . . . . . . . . . . . Emergency Access Points 6 | . 1 . . . . 1 . . 1 . . 1 . . . 1 . 1 . . Terminal Index 2 | . . . . . . . . . 1 . 1 . . . . . . . . . Fabricator Index 1 | . . . . . . . . . . . 1 . . . . . . . . . Scanalyzer Index 1 | . . . . . . . . . . . 1 . . . . . . . . . Garrison Index 3 | . . . . . 1 . . . 1 . 1 . . . . . . . . . Unreport Threat 5 | . . . . . 2 . . . 1 . . . . . . . 1 . 1 . Locate Traps 1 | . . . . . . . . . 1 . . . . . . . . . . . Hauler Manifests 3 | . 1 . . . . . . . 2 . . . . . . . . . . . Registered Prototypes 1 | . . . . . . . . . . . 1 . . . . . . . . . Zone Layout 2 | . . . . . 1 . . . 1 . . . . . . . . . . . Garrison Registry 3 | . . . . . . 1 . 1 . 1 . . . . . . . . . . Patrol Navigation 1 | . . . . . . . . . . . . . . . . 1 . . . . Security Stations 1 | . . . . . . . . . . 1 . . . . . . . . . . Fabricator Hacks 1 | . . . . . . . . . 1 . . . . . . . . . . . Network Status 1 | . . . . . . . . . 1 . . . . . . . . . . . Repair Station Hacks 2 | . . . . . . . . . 1 . . . . . . . . . 1 . Scan Component 1 | . . . . . . . . . . . . . . . . . . . 1 . Refit 1 | . . . . . . . . . 1 . . . . . . . . . . . Recycling Unit Hacks 2 | . 1 . . . . . . . . . 1 . . . . . . . . . Retrieve Components 2 | . 1 . . . . . . . . . 1 . . . . . . . . . Scanalyzer 7 | . . . 1 . . . . . 1 . 3 . . . . . . . 2 . Insert Component 1 | . . . . . . . . . . . 1 . . . . . . . . . Analyze 1 | . . . . . . . . . . . 1 . . . . . . . . . Retrieve Study 5 | . . . 1 . . . . . 1 . 1 . . . . . . . 2 . Garrison Access Hacks 11 | . . . . . 1 . 1 . 4 . 2 . . . 1 . 1 . 1 . Unlock Access 7 | . . . . . 1 . 1 . 1 . 1 . . . 1 . 1 . 1 . Seal Access 2 | . . . . . . . . . 2 . . . . . . . . . . . Coupler Status 2 | . . . . . . . . . 1 . 1 . . . . . . . . . Unauthorized Hacks 11 | . 4 . . . 2 . . . 2 . 2 . . . . . . . 1 . Terminals 8 | . 3 . . . 2 . . . 1 . 2 . . . . . . . . . Botnet 3 | . 1 . . . 1 . . . . . 1 . . . . . . . . . Skim 5 | . 2 . . . 1 . . . 1 . 1 . . . . . . . . . Fabricators 2 | . . . . . . . . . 1 . . . . . . . . . 1 . Liberate 1 | . . . . . . . . . 1 . . . . . . . . . . . Overload 1 | . . . . . . . . . . . . . . . . . . . 1 . Repair Stations . | . . . . . . . . . . . . . . . . . . . . . Recycling Units 1 | . 1 . . . . . . . . . . . . . . . . . . . Tunnel 1 | . 1 . . . . . . . . . . . . . . . . . . . Scanalyzers . | . . . . . . . . . . . . . . . . . . . . . Garrison Access . | . . . . . . . . . . . . . . . . . . . . . Data Cores Recovered 2 | . 1 . . . . . . . . . . . . . . . 1 . . . Used 1 | . 1 . . . . . . . . . . . . . . . . . . . Hacking Detections 41 | . 3 . 1 . 6 1 1 2 9 1 4 1 . . 2 2 2 2 4 . Full Trace Events 1 | . . . . . . . . . . . . . . . . . . 1 . . Feedback Events . | . . . . . . . . . . . . . . . . . . . . . Feedback Blocked . | . . . . . . . . . . . . . . . . . . . . . Robot Schematics Acquired . | . . . . . . . . . . . . . . . . . . . . . Robots Built . | . . . . . . . . . . . . . . . . . . . . . Authchips . | . . . . . . . . . . . . . . . . . . . . . Time . | . . . . . . . . . . . . . . . . . . . . . Total Robot Build Rating . | . . . . . . . . . . . . . . . . . . . . . Part Schematics Acquired 1 | . . . . . . . . . . . 1 . . . . . . . . . Parts Built . | . . . . . . . . . . . . . . . . . . . . . Authchips . | . . . . . . . . . . . . . . . . . . . . . Time . | . . . . . . . . . . . . . . . . . . . . . Total Part Build Rating . | . . . . . . . . . . . . . . . . . . . . . Part Studies Acquired 5 | . . . 1 . . . . . 1 . 1 . . . . . . . 2 . Parts Repaired . | . . . . . . . . . . . . . . . . . . . . . Time . | . . . . . . . . . . . . . . . . . . . . . Parts Recycled . | . . . . . . . . . . . . . . . . . . . . . Recycled Matter . | . . . . . . . . . . . . . . . . . . . . . Retrieved Matter . | . . . . . . . . . . . . . . . . . . . . . Retrieved Components 3 | . . . . . . . . . . . 3 . . . . . . . . . Parts Scanalyzed 1 | . . . . . . . . . . . 1 . . . . . . . . . Part Schematics Acquired 1 | . . . . . . . . . . . 1 . . . . . . . . . Parts Damaged . | . . . . . . . . . . . . . . . . . . . . . Bothacking | -11 -10 -10 -9 -9 -8 -8 -8 -8 -7 -7 -6 -6 -5 -5 -5 -5 -4 -4 -4 -4 ------------ Run | Yrd Mat Min Mat Min Mat Gar Mat Gar Fac Gar Fac Gar Fac Was Fac Gar Fac Gar Fac Gar Used RIF Installer 8 | . . . . . . 1 . 2 . 1 . 1 . . . 1 . 1 . 1 Coupler Efficiency 2 | . . . . . . . . . . . . . . . . 1 . 1 . . Hotswap 1 | . . . . . . . . . . . . . . . . . . . . 1 Threat Obfuscator 1 | . . . . . . . . . . 1 . . . . . . . . . . Robot Detection 1 | . . . . . . . . 1 . . . . . . . . . . . . Patrol Navigation 1 | . . . . . . . . 1 . . . . . . . . . . . . Alert ID Control 1 | . . . . . . . . . . . . 1 . . . . . . . . Robots Hacked 49 | . . . . . . . . . . . 2 10 . 6 . 17 2 . 12 . Non-combat 6 | . . . . . . . . . . . . 2 . . . . . . 4 . Combat 43 | . . . . . . . . . . . 2 8 . 6 . 17 2 . 8 . Robot Hacks Applied 50 | . . . . . . . . . . . 3 10 . 6 . 17 2 . 12 . parse_system 3 | . . . . . . . . . . . 1 . . . . 1 . . 1 . find_fabricator 1 | . . . . . . . . . . . . . . . . . . . 1 . ignore_parts 2 | . . . . . . . . . . . . . . . . . . . 2 . ignore_targets 6 | . . . . . . . . . . . . . . 6 . . . . . . spike_heat 2 | . . . . . . . . . . . . . . . . 1 . . 1 . disable_weapons 1 | . . . . . . . . . . . 1 . . . . . . . . . reboot_system 1 | . . . . . . . . . . . . 1 . . . . . . . . overwrite_iff 9 | . . . . . . . . . . . . 4 . . . 5 . . . . formatsys_low 2 | . . . . . . . . . . . . 2 . . . . . . . . formatsys_high 23 | . . . . . . . . . . . 1 3 . . . 10 2 . 7 . Relay Couplers Released 38 | . . . . . . . . . . 4 . 11 . . . 12 . 4 . 7 Machine Destruction 38 | . . . . . . . . . . 4 . 11 . . . 12 . 4 . 7 Attached 40 | . . . . . . . . . . 4 . 12 . 1 . 14 . 1 3 5 Fabnet Peak Effective % . | . . . . . . . . . . . . . . . . . . . . . Robots Rewired 8 | . . . . . . . . 2 . . . 2 . . . 1 . 2 1 . Allies Hacked 1 | . . . . . . . . . . . . 1 . . . . . . . . Hacks Repelled . | . . . . . . . . . . . . . . . . . . . . . Allies | -11 -10 -10 -9 -9 -8 -8 -8 -8 -7 -7 -6 -6 -5 -5 -5 -5 -4 -4 -4 -4 -------- Run | Yrd Mat Min Mat Min Mat Gar Mat Gar Fac Gar Fac Gar Fac Was Fac Gar Fac Gar Fac Gar Total Allies 49 | . . 3 . . . . . 2 2 2 1 11 . . . 16 2 2 8 . Largest Group 7 | . . 3 3 2 . . . 2 2 2 3 4 1 1 . 7 5 5 3 . Highest-Rated Group 375 | . . 40 40 32 . . . 37 64 133 174 155 29 29 . 330 375 375 191 . Highest-Rated Ally 148 | . . 16 16 16 . . . 21 32 75 75 75 29 29 . 116 116 148 142 . Total Orders 11 | . . . . 1 . . . . . . . 5 . 1 . . 3 . 1 . STAY 5 | . . . . 1 . . . . . . . 1 . 1 . . 2 . . . FOLLOW 2 | . . . . . . . . . . . . 1 . . . . 1 . . . AID 3 | . . . . . . . . . . . . 3 . . . . . . . . EXPLORE 1 | . . . . . . . . . . . . . . . . . . . 1 . Ally Attacks 417 | . . 15 35 2 . . . 12 6 9 11 39 . 40 . 148 15 45 40 . Total Damage 8956 | . . 199 347 14 . . . 136 235 . 356 814 . 556 . 2272 760 1976 1291 . Kills 58 | . . 3 4 . . . . 1 1 . 5 6 . . . 13 3 18 4 . Allies Corrupted 2 | . . . . . . . . . . . . . . . . . . . 2 . Allies Melted . | . . . . . . . . . . . . . . . . . . . . . Intel | -11 -10 -10 -9 -9 -8 -8 -8 -8 -7 -7 -6 -6 -5 -5 -5 -5 -4 -4 -4 -4 ------- Run | Yrd Mat Min Mat Min Mat Gar Mat Gar Fac Gar Fac Gar Fac Was Fac Gar Fac Gar Fac Gar Active Infowar (turns) 2078 | . . . . 1 . . . . 345 345 355 271 . . . . . . 661 100 Optics 55 | . . . . . . . . . 55 . . . . . . . . . . . Sensors 1056 | . . . . 1 . . . . 290 345 355 37 . . . . . . 28 . T.N.C. 761 | . . . . . . . . . . . . . . . . . . . 661 100 Triangulation 234 | . . . . . . . . . . . . 234 . . . . . . . . Robot Analysis Total 1 | . . . . . 1 . . . . . . . . . . . . . . . Derelict Logs Recovered 3 | . . 3 . . . . . . . . . . . . . . . . . . Drone Launches 18 | . . . . . . . . 7 . 9 . . . . . . . . 2 . Drone Recoveries . | . . . . . . . . . . . . . . . . . . . . . Exploration | -11 -10 -10 -9 -9 -8 -8 -8 -8 -7 -7 -6 -6 -5 -5 -5 -5 -4 -4 -4 -4 ------------- Run | Yrd Mat Min Mat Min Mat Gar Mat Gar Fac Gar Fac Gar Fac Was Fac Gar Fac Gar Fac Gar Turns Passed 11970 | 137 587 1115 299 673 585 403 309 818 448 345 355 1380 32 138 299 1542 469 796 1140 100 Spaces Moved 9753 | 57 261 646 161 379 258 186 138 629 819 667 517 1298 36 154 295 1192 328 487 1113 132 Core 445 | 5 . . . . . . . . . . . . . 117 . 322 . . . 1 Treads 2198 | 52 261 646 161 379 258 186 138 116 . . . . . . . . . 1 . . Legs 3304 | . . . . . . . . . . . . 850 36 37 295 870 328 486 402 . Wheels . | . . . . . . . . . . . . . . . . . . . . . Hover 3275 | . . . . . . . . 513 819 313 517 448 . . . . . . 665 . Flight 531 | . . . . . . . . . . 354 . . . . . . . . 46 131 Fastest Speed 28 | 50 160 160 160 160 145 145 152 46 46 32 45 45 90 50 90 50 115 110 28 30 Average Speed 89 | 150 160 160 160 160 146 154 156 66 46 38 45 77 90 59 90 89 117 116 61 30 Slowest Speed 450 | 160 160 160 160 160 160 160 160 152 46 100 45 230 90 90 90 450 122 250 190 100 Overloaded Moves 2 | . . . . . . . . . . . . . . . . . . . 2 . Propulsion Burnouts . | . . . . . . . . . . . . . . . . . . . . . Robots Hopped . | . . . . . . . . . . . . . . . . . . . . . Potential Cave-ins . | . . . . . . . . . . . . . . . . . . . . . Cave-ins Triggered . | . . . . . . . . . . . . . . . . . . . . . Exploration Rate (%) 42 | 5 54 97 21 82 36 47 16 52 27 63 15 77 2 84 9 87 11 64 30 18 Regions Visited 20 Branch Regions 2 Pre-discovered Areas 2 | . 1 1 . . . . . . . . . . . . . . . . . . Known Exits Taken 9 | . . . 1 1 1 . 1 . 1 . 1 . . . 1 . 1 . 1 . Unknown Exits Taken 3 | 1 1 1 . . . . . . . . . . . . . . . . . . Scrap Searched 3 | . . 1 . 2 . . . . . . . . . . . . . . . . Spaces Dug 107 | . 12 22 . . . 7 . 29 8 . 2 3 . . 1 8 . 1 11 3 Terrain Destroyed 483 | . 35 31 2 5 8 7 28 69 8 . 6 91 . . 3 36 5 13 133 3 Melee 17 | . . . . . . 1 . 1 8 . 2 . . . . . . . 2 3 Projectile 116 | . . . . . . . . . . . 4 20 . . 3 36 5 13 35 . AOE 350 | . 35 31 2 5 8 6 28 68 . . . 71 . . . . . . 96 . Terrain Rammed . | . . . . . . . . . . . . . . . . . . . . . Walls Destroyed . | . . . . . . . . . . . . . . . . . . . . . Machines Disabled . | . . . . . . . . . . . . . . . . . . . . . Actions | -11 -10 -10 -9 -9 -8 -8 -8 -8 -7 -7 -6 -6 -5 -5 -5 -5 -4 -4 -4 -4 --------- Run | Yrd Mat Min Mat Min Mat Gar Mat Gar Fac Gar Fac Gar Fac Was Fac Gar Fac Gar Fac Gar Total 12017 | 79 355 688 193 425 368 245 180 927 873 723 588 1568 36 185 317 1519 396 668 1523 161 Wait 624 | . 22 9 6 16 17 9 3 148 . 4 17 80 . 10 3 94 25 26 135 . Move 9740 | 56 260 645 160 378 258 185 138 628 819 666 517 1297 36 153 295 1191 328 486 1112 132 Hop . | . . . . . . . . . . . . . . . . . . . . . Pick Up 111 | 3 10 2 8 6 9 1 . 8 3 5 2 11 . 1 2 7 6 13 14 . Fast Attach 141 | 5 4 . . 1 5 2 3 8 6 4 4 18 . 2 2 31 8 10 23 5 Attach 75 | . 3 1 1 1 4 . . 6 . 1 3 13 . 3 3 15 2 7 10 2 Detach 65 | . 3 . . . 2 . . 4 1 . 4 13 . 1 1 14 2 10 9 1 Swap 114 | . 6 6 3 5 9 14 7 11 2 3 1 10 . . . 2 4 5 26 . Drop 166 | . 4 3 7 6 12 3 4 12 5 7 3 19 . 1 2 14 8 18 38 . Fire 590 | 15 42 21 5 10 52 29 25 35 . . 17 59 . . 9 79 8 52 132 . Melee 230 | . . . . . . 2 . 31 11 20 20 24 . 14 . 60 5 8 15 20 Ram 5 | . . . . . . . . . . . . . . . . . . . 4 1 Kick 10 | . . . . . . . . . . . . . . . . 7 . 1 2 . Crush 7 | . 1 1 3 2 . . . . . . . . . . . . . . . . Escape Stasis 82 | . . . . . . . . 13 26 13 . 19 . . . 4 . 5 2 . Rewire 57 | . . . . . . . . 23 . . . 5 . . . 1 . 27 1 . Trap . | . . . . . . . . . . . . . . . . . . . . . Miscellaneous . | . . . . . . . . . . . . . . . . . . . . . Route ------- -11/Scrapyard -10/Materials (discovered 2 exits: *Mat / [*Min]) -10/Mines (discovered 3 exits: *Mat x2 / [*Sub]) -9/Materials (discovered 2 exits: Mat / *Min) -9/Mines -8/Materials (discovered 2 exits: *Fac / Gar) -8/Garrison (discovered 3 exits: *Mat x3) -8/Materials -8/Garrison (discovered 3 exits: *Fac x3) -7/Factory (discovered 2 exits: *Fac / Gar) -7/Garrison (discovered 3 exits: *Fac x3) -6/Factory (discovered 3 exits: *Fac / *Low / Gar) -6/Garrison (discovered 2 exits: *Fac x2) -5/Factory -5/Waste -5/Factory -5/Garrison (discovered 3 exits: *Fac x3) -4/Factory -4/Garrison -4/Factory (discovered 2 exits: [*Res] / Gar) -4/Garrison History --------- Turn | Location | Event 3 | -11/Scrapyard | Discovered new exit (range 14) 138 | -11/Scrapyard | Entered Materials 310 | -10/Materials | Build established: Mutant 498 | -10/Materials | Discovered new exit (range 13) 694 | -10/Materials | Discovered new exit (range 12) 725 | -10/Materials | Entered Mines 764 | -10/Mines | Learned Materials terminal intel 790 | -10/Mines | Learned Materials security intel 902 | -10/Mines | Learned location of 1 exit from Materials 1081 | -10/Mines | Discovered new exit (range 11) 1171 | -10/Mines | Discovered new exit (range 7) 1229 | -10/Mines | Discovered new exit (range 15) 1256 | -10/Mines | Assisted by bots powering up and referring to "LRC-V3" 1316 | -10/Mines | Received a Rocket Launcher from a helpful Derelict 1397 | -10/Mines | Core integrity fell below 50% 1461 | -10/Mines | Learned location of Storage (-7) 1840 | -10/Mines | Entered Materials 1840 | -9/Materials | Accompanied by 3 allies 1840 | -9/Materials | Evolved 2 slots: Utility x2 1841 | -9/Materials | Identified exit to Materials 1843 | -9/Materials | Loaded intel: 12 terminal locations 1930 | -9/Materials | Identified exit to Mines 2139 | -9/Materials | Entered Mines 2139 | -9/Mines | Accompanied by 2 allies 2244 | -9/Mines | Assembled infested the area 2268 | -9/Mines | YI-UF0 nonchalantly dropped a Grenade Launcher on the ground 2344 | -9/Mines | Destroyed YI-UF0 2354 | -9/Mines | Found Corrupted Prototype Launcher 2421 | -9/Mines | Build established: Scavenger-Mutant 2443 | -9/Mines | Found the Drone Emporium 2449 | -9/Mines | Found Prototype Device 2607 | -9/Mines | Found a damaged Exp. Sensor Array with a note attached 2610 | -9/Mines | Found Prototype Device 2610 | -9/Mines | Identified Exp. Sensor Array 2758 | -9/Mines | Discovered exit to Materials (range 10) 2809 | -9/Mines | Identified YI-UF0's Doublenader 2810 | -9/Mines | System corruption reached 10% 2812 | -9/Mines | Entered Materials 2812 | -8/Materials | Evolved 2 slots: Utility x2 3143 | -8/Materials | Build established: Mutant 3273 | -8/Materials | Identified Bomb Drone Bay 3301 | -8/Materials | Discovered new exit (range 14) 3397 | -8/Materials | Identified exit to Garrison 3397 | -8/Materials | Entered Garrison 3426 | -8/Garrison | Discovered new exit (range 45) 3426 | -8/Garrison | Discovered new exit (range 71) 3426 | -8/Garrison | Discovered new exit (range 42) 3493 | -8/Garrison | Build established: Hacker-Mutant 3583 | -8/Garrison | Lost 3 parts (2u1w) 3687 | -8/Garrison | Triggered checkpoint 3779 | -8/Garrison | Installed Relay Interface Framework 3800 | -8/Garrison | Entered Materials 3850 | -8/Materials | Build established: Scavenger-Mutant 4109 | -8/Materials | Identified exit to Garrison 4109 | -8/Materials | Entered Garrison 4136 | -8/Garrison | Expanded RIF knowledge: Patrol Navigation 4309 | -8/Garrison | Core integrity fell below 50% 4557 | -8/Garrison | Discovered new exit (range 59) 4557 | -8/Garrison | Discovered new exit (range 52) 4557 | -8/Garrison | Discovered new exit (range 56) 4634 | -8/Garrison | Build established: Hacker-Mutant 4651 | -8/Garrison | P-60 Hacker assimilated allied Trooper 3a 4772 | -8/Garrison | Triggered checkpoint 4773 | -8/Garrison | Triggered checkpoint 4853 | -8/Garrison | Lost 5 allies 4919 | -8/Garrison | Expanded RIF knowledge: Robot Detection 4927 | -8/Garrison | Entered Factory 4927 | -7/Factory | Evolved 2 slots: Utility x2 5173 | -7/Factory | Found Powered Armor 5191 | -7/Factory | Discovered new exit (range 6) 5196 | -7/Factory | Identified exit to Factory 5347 | -7/Factory | Central database locked down 5375 | -7/Factory | Identified exit to Garrison 5375 | -7/Factory | Entered Garrison 5401 | -7/Garrison | Triggered checkpoint 5416 | -7/Garrison | Garrison Relay disabled 5441 | -7/Garrison | Triggered checkpoint 5441 | -7/Garrison | Triggered checkpoint 5445 | -7/Garrison | Triggered checkpoint 5478 | -7/Garrison | Lost 7 allies 5519 | -7/Garrison | Discovered exit to Factory (range 55) 5519 | -7/Garrison | Discovered exit to Factory (range 77) 5519 | -7/Garrison | Discovered exit to Factory (range 83) 5519 | -7/Garrison | Learned Factory security intel 5701 | -7/Garrison | Expanded RIF knowledge: Threat Obfuscation 5710 | -7/Garrison | Found embedded Infiltrators 5720 | -7/Garrison | Entered Factory 5720 | -6/Factory | Accompanied by 2 allies 5720 | -6/Factory | Evolved 2 slots: Propulsion x1, Utility x1 5797 | -6/Factory | Discovered new exit (range 15) 5803 | -6/Factory | Identified exit to Factory 5949 | -6/Factory | Discovered new exit (range 6) 5953 | -6/Factory | Identified exit to Lower Caves 6073 | -6/Factory | Identified exit to Garrison 6075 | -6/Factory | Entered Garrison 6075 | -6/Garrison | Accompanied by 3 allies 6087 | -6/Garrison | Triggered checkpoint 6126 | -6/Garrison | Lost 3 allies 6155 | -6/Garrison | Garrison Relay disabled 6262 | -6/Garrison | Triggered checkpoint 6289 | -6/Garrison | Phase Generator disabled 6315 | -6/Garrison | Spotted B-75 Beast 6409 | -6/Garrison | Build established: Bothacker-Mutant 6495 | -6/Garrison | Allies destroyed B-75 Beast 6508 | -6/Garrison | Lost 5 parts (1n3u1w) 6704 | -6/Garrison | Discovered exit to Factory (range 10) 7053 | -6/Garrison | Triggered checkpoint 7053 | -6/Garrison | Triggered checkpoint 7134 | -6/Garrison | Garrison Relay disabled 7155 | -6/Garrison | Triggered checkpoint 7175 | -6/Garrison | Discovered exit to Factory (range 12) 7181 | -6/Garrison | Expanded RIF knowledge: Alert ID Control 7427 | -6/Garrison | Garrison Relay disabled 7455 | -6/Garrison | Entered Factory 7455 | -5/Factory | Accompanied by 1 ally 7455 | -5/Factory | Evolved 2 slots: Utility x2 7487 | -5/Factory | Sucked down chute 7487 | -5/Factory | Entered Waste 7492 | -5/Waste | 1 allies followed down the chute 7496 | -5/Waste | Build established: Botlord-Mutant 7502 | -5/Waste | EMP discharged 7509 | -5/Waste | Spotted C-40 Crusher 7513 | -5/Waste | Spotted C-40 Crusher 7523 | -5/Waste | Crushed by Compactor (1 part destroyed, 1 dropped) 7535 | -5/Waste | Spotted C-40 Crusher 7578 | -5/Waste | Destroyed C-40 Crusher 7581 | -5/Waste | Spotted C-40 Crusher 7586 | -5/Waste | Spotted C-40 Crusher 7590 | -5/Waste | Spotted C-40 Crusher 7602 | -5/Waste | EMP discharged 7602 | -5/Waste | System corruption reached 10% 7617 | -5/Waste | Discovered new exit (range 16) 7625 | -5/Waste | Entered Factory 7796 | -5/Factory | Build established: Bothacker-Mutant 7924 | -5/Factory | Identified exit to Garrison 7924 | -5/Factory | Entered Garrison 7939 | -5/Garrison | Expanded RIF knowledge: Coupler Efficiency 7952 | -5/Garrison | Spotted B-86 Titan 7987 | -5/Garrison | Garrison Relay disabled 8002 | -5/Garrison | Triggered checkpoint 8078 | -5/Garrison | Triggered checkpoint 8102 | -5/Garrison | Spotted B-75 Beast 8117 | -5/Garrison | Allies destroyed B-75 Beast 8150 | -5/Garrison | Triggered checkpoint 8187 | -5/Garrison | Discovered new exit (range 13) 8224 | -5/Garrison | Triggered checkpoint 8243 | -5/Garrison | Build established: Botlord-Mutant 8334 | -5/Garrison | Triggered checkpoint 8374 | -5/Garrison | Triggered checkpoint 8442 | -5/Garrison | Discovered new exit (range 13) 8539 | -5/Garrison | Lost 7 allies 8566 | -5/Garrison | Garrison Relay disabled 8570 | -5/Garrison | Triggered checkpoint 8884 | -5/Garrison | Garrison Relay disabled 8912 | -5/Garrison | Discovered new exit (range 15) 9045 | -5/Garrison | Lost 4 parts (2n2u) 9169 | -5/Garrison | Lost 3 parts (1p1n1w) 9242 | -5/Garrison | Assimilated Titan 6a with formatsys_high 9249 | -5/Garrison | Rewired B-86 Titan 9466 | -5/Garrison | Entered Factory 9466 | -4/Factory | Accompanied by 4 allies 9466 | -4/Factory | Evolved 2 slots: Propulsion x2 9655 | -4/Factory | Found Quantum Capacitor 9923 | -4/Factory | Identified exit to Garrison 9935 | -4/Factory | Entered Garrison 9935 | -4/Garrison | Accompanied by 5 allies 10001 | -4/Garrison | Triggered checkpoint 10066 | -4/Garrison | Spotted B-90 Cyclops 10090 | -4/Garrison | Destroyed B-90 Cyclops 10112 | -4/Garrison | Rewired B-75 Beast 10115 | -4/Garrison | Lost 3 allies 10137 | -4/Garrison | Rewired B-90 Cyclops 10261 | -4/Garrison | Triggered checkpoint 10262 | -4/Garrison | Triggered checkpoint 10277 | -4/Garrison | Triggered checkpoint 10298 | -4/Garrison | Triggered checkpoint 10388 | -4/Garrison | Destroyed Cyclops 7a 10499 | -4/Garrison | Garrison Relay disabled 10515 | -4/Garrison | Triggered checkpoint 10603 | -4/Garrison | Expanded RIF knowledge: Coupler Efficiency 10677 | -4/Garrison | Spotted B-86 Titan 10706 | -4/Garrison | Discovered new exit (range 8) 10731 | -4/Garrison | Entered Factory 10979 | -4/Factory | Spotted B-86 Titan 11464 | -4/Factory | Cargo convoy interrupted 11510 | -4/Factory | Discovered new exit (range 14) 11526 | -4/Factory | Found Prototype Launcher 11526 | -4/Factory | Identified Ragnarok Missile Launcher 11546 | -4/Factory | Found Prototype Processor 11546 | -4/Factory | Identified Exp. Terrain Scan Processor 11828 | -4/Factory | System corruption reached 10% 11851 | -4/Factory | Core integrity fell below 50% 11870 | -4/Factory | Identified exit to Garrison 11871 | -4/Factory | Entered Garrison 11879 | -4/Garrison | Garrison Relay disabled 11888 | -4/Garrison | Lost 10 parts (1p5n3u1w) 11889 | -4/Garrison | Expanded RIF knowledge: Hotswap 11923 | -4/Garrison | Garrison Relay disabled 11935 | -4/Garrison | Triggered checkpoint 11945 | -4/Garrison | Core integrity fell below 20% 11971 | -4/Garrison | Destroyed by G-67 Veteran with Field Laser Last Messages --------------- Initiating installation procedure... 11889_ Expanded RIF knowledge: Hotswap. 11899_ I43P7U&CV=BXDQXO:HR| 11923_ Garrison Relay disabled. 11923_ Relay Coupler [NC] tumbles out of relay unit. 11923_ Relay Coupler [Duelist] tumbles out of relay unit. 11923_ Relay Coupler [Swarmer] tumbles out of relay unit. 11925_ System corrupted: Energy discharge (-31). 11926_ Acquired Relay Coupler [Swarmer]. 11928_ Acquired Relay Coupler [Duelist]. 11935_ Beams of light sweep through the air. An alarm sounds. 11935_ Imp. Surge Thruster destroyed. 11943_ BKCIFBBGF F7FVH6M2O,L 11945_ Critical hit (Burn: +37). 11948_ Relay Coupler [Sentry] destroyed. 11951_ Slammed into G-67 Veteran. 11952_ G-67 Veteran Field Laser severed. 11958_ Destroyed Plasma Rifle. 11963_ System corrupted: Imp. Remote Datajack fused. 11965_ Relay Coupler [Duelist] destroyed. Map ----- +----------------------------------------------------+ | ???????????#######"######### #?????????? | | ?????????????????# #?"#????# #?????????? | | ????????????????## ##"###### #?????????? | | ????????????????# """""## #?????????? | | ????????????????# " "## #?????????? | | ????????????????# "## #?????????? | | ????????????????# " "## #?????????? | | ????????????????# """ ""## #?????????? | | ????????????????# " ## #?????????? | | ????????????????# ## #?????????? | | ????????????????# # #?????????? | | ????????????????# ## #?????????? | | ????????????????##### ###### ##????????? | | ???????????########## #????# "#????????? | | ????????# #????# ##????????? | | ???????????####### ####????# #?????????? | | ????????????????##+##??????# ##????????? | | ????????????????# #??????# "########?? | | ?????# ######### ##########"##"""""#?? | | ?????# # "#?? | | ?????# ## ! "#?? | | ?????####################### ### ! "#?? | | ???????????????????????????# #?#"""""#?? | | ?????????????????????????### #?#######?? | | ??????????????????????# ## #?????????? | | ??????????????????????#g[@ #?????????? | | ??????????????????????####g #?????????? | | ?????????????????????????### ###???????? | | ???????????????????????????# #"#???????? | | ???????????????????????????# "#???????? | | ????????????????????######## #???????? | | ????????????????????#"""" ## "#???????? | | ????????????????????#" #"#???????? | | ????????????????????#"""" #######???????? | | ????????????????????#######?????????????? | | ????????????????????????????????????????? | | ????????????????????????????????????????? | | ????????????????????????????????????????? | | ????????????????????????????????????????? | | ????????????????????????????????????????? | | ????????????????????????????????????????? | | ????????????????????????????????????????? | | ????????????????????????????????????????? | | ????????????????????????????????????????? | | | | | | | | | | | | | +----------------------------------------------------+ Best States ------------- Heat Dissipation 45 Coolant Potential 100 Energy Generation 37 Energy Capacity 350 Matter Stores 300 Matter Capacity 300 Sight Range 18 Robot Scan Range 20 Terrain Scan Density 10 Additional Mass Support 16 Corruption Containment 8 Armor Coverage 1200 Resistance: KI 20 Resistance: TH 15 Weapon Cycling 20 Evasion (%) 64 Targeting Accuracy 8 Melee Accuracy 12 Recoil Reduction 2 Offensive Hacking 42 Defensive Hacking 12 Relay Coupler Types 8 Relay Coupler Value 312 Item Schematics ----------------- Hvy. Mass Driver | -6/Factory | Scanalyzed Robot Schematics ------------------ None Fabricated ------------ Nothing Repaired ---------- Nothing Studied --------- Lgt. EM Pulse Cannon | -9/Materials | Hacked Surge Thruster | -7/Factory | Hacked Hvy. Mass Driver | -6/Factory | Hacked Imp. Antigrav System | -4/Factory | Hacked Adv. VSS Leg | -4/Factory | Hacked Alien Tech Used ----------------- None Achievements -------------- None Challenges ------------ None Game ------ Seed ZhirovArcsightBox Manual? 0 Play Time 02:16:23 Cumulative 977.2 hours Start 2025.11.05 @ 14:03:10 End 2025.11.05 @ 16:25:23 Sessions 1 Manual Loads 0 Difficulty Rogue Special Mode None Game No. 305 Rogue 303 Adventurer 2 Explorer 0 Win Type - Total 68 Types 20/15/15/1/1/1/11/1/1/2 Lore% 97 Gallery% 94 Achievement% 81 Wizard Run 0 Options --------- Layout 0 ASCII 0 Keyboard 1 Movement Numpad Keybinds 0 Fullscreen 1 Font 24/Smallcaps Map View 76x50 Zoom Use 0% Tactical HUD 1 Map Filters NONE Filters NONE Steam 1 RUN: f30a87b0-fa53-4a46-bc25-ba6618229c46